bitfinex-derivatives/quotes_ETHF0:USTF0_20260222
["timestamp","ask_amount","ask_price","bid_price","bid_amount"]
[1771743928744,0.46244428,1976.7,1976.3,0.61690635]
[1771743928949,0.46244428,1976.6,1976.3,0.61690635]
[1771743929154,0.46500197,1976.8,1976.3,0.61690635]
[1771743929354,0.46244239,1976.7,1976.3,0.61690635]
[1771743929554,0.46244239,1976.6,1976.3,0.61690635]
[1771743929853,0.46500197,1976.8,1976.3,0.61690635]
[1771743930048,0.46244182,1976.7,1976.3,0.61690635]
[1771743930248,0.46244182,1976.6,1976.3,0.61690635]
[1771743930447,0.46500197,1976.8,1976.3,0.61690635]
[1771743930651,0.92675935,1976.7,1976.3,0.61690635]
[1771743930851,0.46244242,1976.6,1976.3,0.61690635]
[1771743931051,0.46431693,1976.7,1976.3,0.61690635]
[1771743931252,0.4624424,1976.6,1976.3,0.61690635]
[1771743931551,0.46431693,1976.7,1976.3,0.61690635]
[1771743931748,0.46244176,1976.6,1976.3,0.61690635]
[1771743931949,0.46431693,1976.7,1976.3,0.61690635]
[1771743932151,0.46244176,1976.6,1976.3,0.61690635]
[1771743932348,0.46431693,1976.7,1976.3,0.61690635]
[1771743932558,0.46244303,1976.6,1976.3,0.61690635]
[1771743932759,0.46431693,1976.7,1976.3,0.61690635]
[1771743933058,0.46244303,1976.6,1976.3,0.61690635]
[1771743933358,0.46431693,1976.7,1976.3,0.61690635]
[1771743933554,0.46244473,1976.6,1976.3,0.61690635]
[1771743933756,0.46431693,1976.7,1976.3,0.61690635]
[1771743933957,0.46244473,1976.6,1976.3,0.61690635]
[1771743934157,0.46431693,1976.7,1976.3,0.61690635]
[1771743934362,0.46244473,1976.6,1976.3,0.61690635]
[1771743934561,0.46431693,1976.7,1976.3,0.61690635]
[1771743934767,0.46244711,1976.6,1976.3,0.61690635]
[1771743935067,0.46431693,1976.7,1976.3,0.61690635]
[1771743935267,0.46244747,1976.6,1976.3,0.61690635]
[1771743935466,0.46431693,1976.7,1976.3,0.61690635]
[1771743935666,0.46245101,1976.6,1976.3,0.61690635]
[1771743935869,0.46431693,1976.7,1976.3,0.61690635]
[1771743936065,0.46245101,1976.6,1976.3,0.61690635]
[1771743936365,0.46431693,1976.7,1976.3,0.61690635]
[1771743936564,0.46290717,1976.5,1976.1,6.93861252]
[1771743936866,0.46290717,1976.5,1976.0,6.93861252]
[1771743937258,0.46290717,1976.5,1976.1,0.56949398]
[1771743937863,0.46840446,1976.3,1976.0,0.56949398]
[1771743941265,0.47120759,1976.1,1975.8,0.61382818]
[1771743943170,0.46821558,1976.5,1975.8,0.61382818]
[1771743943376,0.46821558,1976.3,1975.8,0.61382818]
[1771743943968,0.46767131,1976.1,1975.8,0.61382818]
[1771743944374,0.46767131,1976.1,1975.4,0.60754741]
[1771743945274,4.23976922,1976.6,1975.4,0.60754741]
[1771743945469,0.60355904,1976.4,1975.4,0.61383744]
[1771743945775,0.4615987,1976.5,1975.4,0.61383744]
[1771743945776,0.60355904,1976.2,1975.4,0.61383744]
[1771743960286,0.46112734,1976.1,1975.4,0.61383744]
[1771743960488,0.60355904,1976.0,1975.4,0.61383744]
[1771743964892,0.60355904,1976.2,1975.4,0.61383744]
[1771743965089,0.60355904,1976.3,1975.5,0.60754741]
[1771743965397,0.60355904,1976.1,1975.5,0.60754741]
[1771743968198,0.58469506,1976.2,1975.5,0.60754741]
[1771743968394,0.46181403,1976.1,1975.5,0.60754741]
[1771743968695,0.58469506,1976.2,1975.5,0.60754741]
[1771743968897,0.4619087,1976.1,1975.5,0.60754741]
[1771743969095,0.58469506,1976.2,1975.5,0.60754741]
[1771743969296,0.4619087,1976.1,1975.5,0.60754741]
[1771743969499,0.58469506,1976.2,1975.5,0.60754741]
[1771743969700,0.46202435,1976.1,1975.5,0.60754741]
[1771743969895,0.58469506,1976.2,1975.5,0.60754741]
[1771743970095,0.46202435,1976.1,1975.5,0.60754741]
[1771743970296,0.58469506,1976.2,1975.5,0.60754741]
[1771743970600,0.46217239,1976.1,1975.5,0.60754741]
[1771743970799,0.58469506,1976.2,1975.5,0.60754741]
[1771743971098,0.46217203,1976.1,1975.5,0.60754741]
[1771743971297,0.58469506,1976.2,1975.5,0.60754741]
[1771743971595,0.46220606,1976.1,1975.5,0.60754741]
[1771743971894,0.58469506,1976.2,1975.5,0.60754741]
[1771743972095,1.046901,1976.1,1975.5,0.60754741]
[1771743972296,0.58469506,1976.1,1975.5,0.60754741]
[1771743981406,1.06260196,1976.0,1975.5,0.60754741]
[1771743981604,0.60022325,1976.0,1975.5,0.60754741]
[1771744015533,1.14799691,1975.7,1975.4,0.00629003]
[1771744015836,0.55303733,1975.6,1975.3,0.20673725]
[1771744016036,0.55303733,1975.6,1975.1,9.09618992]
[1771744016631,0.55826357,1975.6,1975.1,9.10211074]
[1771744017031,0.55826357,1975.6,1975.2,0.00108715]
[1771744020440,0.00522624,1975.6,1975.2,0.00108715]
[1771744022040,0.6019641,1975.6,1975.2,0.00108715]
[1771744025746,0.6019641,1975.6,1975.1,9.10211074]
[1771744026646,0.6019641,1975.6,1975.1,1.15391773]
[1771744026946,0.6019641,1975.6,1975.2,0.00118301]
[1771744027645,0.6019641,1975.6,1975.1,1.15529459]
[1771744028447,0.6019641,1975.6,1975.2,0.00307543]
[1771744036260,0.6019641,1975.6,1975.1,1.15391773]
[1771744036557,0.6019641,1975.6,1975.2,0.00741386]
[1771744041459,0.6019641,1975.6,1975.1,0.00592082]
[1771744041762,0.6019641,1975.6,1975.1,1.17071225]
[1771744042057,0.60448983,1975.9,1975.2,0.01723691]
[1771744042261,4.23976922,1976.1,1975.2,0.01723691]
[1771744042262,0.60074565,1976.1,1975.7,1.73509988]
[1771744042556,0.60074565,1976.1,1975.5,1.73509988]
[1771744042760,0.60074565,1976.1,1975.6,0.58710297]
[1771744042960,0.60074565,1976.1,1975.7,1.73509988]
[1771744043158,0.60548943,1976.1,1975.7,1.73509988]
[1771744047965,0.60074565,1976.2,1975.8,0.58710297]
[1771744049068,0.60536379,1976.2,1975.8,0.58710297]
[1771744056868,0.60074565,1976.3,1975.8,0.58710297]
[1771744057967,0.60444233,1976.3,1975.8,0.58710297]
[1771744067779,0.60444233,1976.3,1975.7,0.56503074]
[1771744072988,0.60444233,1976.3,1975.5,8.51322375]
[1771744073190,0.56405679,1976.1,1975.5,8.51322375]
[1771744073392,0.56405679,1976.1,1975.6,0.56503074]
[1771744082296,0.56405679,1976.1,1975.5,0.56503074]
[1771744098015,0.56405679,1976.1,1975.5,0.6034621]
[1771744100216,0.6294689,1976.3,1975.5,0.6034621]
[1771744100410,0.45905181,1976.2,1975.6,0.6034621]
[1771744100614,0.6294689,1976.3,1975.6,0.6034621]
[1771744100918,1.08479723,1976.2,1975.6,0.6034621]
[1771744101120,0.62577222,1976.2,1975.6,0.6034621]
[1771744108818,0.62577222,1976.0,1975.6,0.6034621]
[1771744111124,0.62577222,1976.0,1975.5,0.6034621]
[1771744135841,0.00369668,1976.3,1975.9,0.5805881]
[1771744136043,0.63278131,1976.5,1976.0,1.72880539]
[1771744136936,0.63725238,1976.5,1976.0,1.72880539]
[1771744137539,0.63278131,1976.1,1975.5,8.52878111]
[1771744137738,0.63278131,1976.1,1975.5,0.5805881]
[1771744148744,0.63278131,1976.1,1975.2,0.62976709]
[1771744148946,0.63278131,1976.1,1975.1,0.0002269]
[1771744148947,0.62483557,1975.3,1975.1,0.0002269]
[1771744149250,0.62483557,1975.3,1974.9,0.62976709]
[1771744149449,0.62483557,1975.5,1974.9,0.62976709]
[1771744149749,0.62483557,1975.9,1975.2,0.63002115]
[1771744149950,0.4582712,1975.8,1975.2,0.63002115]
[1771744150152,0.62483557,1975.7,1975.2,0.63523186]
[1771744158356,5.065,1977.2,1975.2,0.63523186]
[1771744158357,1.14821729,1976.2,1975.2,0.63523186]
[1771744158558,0.6264657,1976.3,1975.8,0.64137335]
[1771744166964,0.6264657,1976.3,1975.3,1.14821729]
[1771744166965,0.6264657,1976.4,1976.0,0.64137335]
[1771744170561,0.6264657,1976.7,1976.0,0.64137335]
[1771744170966,0.63093677,1976.5,1976.0,0.64137335]
[1771744188573,0.63093677,1976.5,1975.8,0.61872333]
[1771744188773,0.59582432,1976.3,1975.8,0.61872333]
[1771744217115,1.02069959,1976.2,1975.8,0.61872333]
[1771744217413,0.56176609,1976.2,1975.8,0.61872333]
[1771744225918,0.56176609,1976.4,1975.8,0.61872333]
[1771744226118,0.45918715,1976.3,1975.8,0.61872333]
[1771744226319,0.56176609,1976.4,1975.8,0.61872333]
[1771744228519,0.00447107,1976.5,1975.8,0.61872333]
[1771744228719,0.45889237,1976.4,1975.8,0.61872333]
[1771744229017,0.56623716,1976.5,1975.8,0.61872333]
[1771744229217,1.0206585,1976.4,1975.8,0.61872333]
[1771744229418,0.56176609,1976.4,1975.8,0.61872333]
[1771744233917,0.56176609,1976.4,1975.9,0.57301446]
[1771744242227,0.5891104,1976.5,1975.9,0.57301446]
[1771744246126,3.48755198,1976.8,1975.9,0.57301446]
[1771744246332,1.14757836,1977.7,1976.6,1.14757836]
[1771744246631,0.58463933,1977.4,1976.7,4.83037062]
[1771744247229,0.58975199,1977.4,1976.7,4.83586337]
[1771744248232,0.58975199,1977.4,1976.7,0.59600654]
[1771744248530,0.00511266,1977.4,1976.9,0.59051379]
[1771744248730,0.58975199,1977.4,1976.9,0.59051379]
[1771744249434,0.58975199,1977.4,1976.8,0.59051379]
[1771744252633,0.58975199,1977.4,1976.9,0.59051379]
[1771744261438,0.58463933,1977.3,1976.7,0.59600654]
[1771744266454,0.58463933,1977.3,1976.7,1.7435849]
[1771744266857,0.58463933,1977.3,1976.8,0.59051379]
[1771744267056,0.58975199,1977.4,1977.0,0.59051379]
[1771744267551,0.58463933,1977.7,1977.0,0.59051379]
[1771744268455,0.58861368,1977.7,1977.0,0.59051379]
[1771744273257,0.56940222,1977.5,1977.0,0.59051379]
[1771744276261,0.45503548,1977.4,1977.1,0.60590264]
[1771744276460,0.56940222,1977.4,1977.1,0.60590264]
[1771744280265,0.56940222,1977.6,1977.1,0.60590264]
[1771744284168,0.56940222,1977.6,1977.0,4.23985683]
[1771744284464,0.56940222,1977.5,1976.9,4.84575947]
[1771744284660,0.56940222,1977.5,1976.9,4.23985683]
[1771744285066,0.56940222,1977.5,1977.0,4.23985683]
[1771744285966,0.56940222,1977.5,1976.9,0.60590264]
[1771744288367,0.45332576,1977.4,1977.0,0.60590264]
[1771744288569,0.57337657,1977.7,1977.0,0.60590264]
[1771744288868,0.56940222,1977.5,1977.0,0.60590264]
[1771744289064,1.02270374,1977.4,1977.0,0.60590264]
[1771744289260,0.00397435,1977.7,1977.0,0.60590264]
[1771744289467,1.02270427,1977.6,1977.0,0.60590264]
[1771744289665,1.02270427,1977.6,1976.9,7.50736361]
[1771744289666,0.45330205,1977.5,1977.2,0.60590264]
[1771744289867,0.45330205,1977.4,1977.2,0.60590264]
[1771744290160,0.56940222,1977.6,1977.2,0.60590264]
[1771744290365,0.45328116,1977.5,1977.2,0.60590264]
[1771744290669,0.45328116,1977.4,1977.2,0.60590264]
[1771744290870,0.56940222,1977.6,1977.2,0.60590264]
[1771744291170,0.45328062,1977.5,1977.2,0.60590264]
[1771744291470,0.45328062,1977.4,1977.2,0.60590264]
[1771744291670,0.56940222,1977.6,1977.2,0.60590264]
[1771744291871,0.45327991,1977.5,1977.2,0.60590264]
[1771744292067,0.45327991,1977.4,1977.2,0.60590264]
[1771744292267,0.56940222,1977.6,1977.2,0.60590264]
[1771744292470,0.45328809,1977.5,1977.2,0.60590264]
[1771744292667,0.45328809,1977.4,1977.2,0.60590264]
[1771744292971,0.56940222,1977.6,1977.2,0.60590264]
[1771744293171,0.45328809,1977.5,1977.2,0.60590264]
[1771744293367,0.45328809,1977.4,1977.2,0.60590264]
[1771744293570,0.56940222,1977.6,1977.2,0.60590264]
[1771744293769,0.45329977,1977.5,1977.2,0.60590264]
[1771744294068,0.45329977,1977.4,1977.2,0.60590264]
[1771744294270,0.56940222,1977.6,1977.2,0.60590264]
[1771744294470,0.45331346,1977.5,1977.2,0.60590264]
[1771744294769,0.45331346,1977.4,1977.2,0.60590264]
[1771744294970,0.56940222,1977.6,1977.2,0.60590264]
[1771744295175,0.45331188,1977.5,1977.2,0.60590264]
[1771744295374,0.45331188,1977.4,1977.2,0.60590264]
[1771744295578,0.57337657,1977.7,1977.2,0.60590264]
[1771744295776,1.02273198,1977.6,1977.2,0.60590264]
[1771744295978,0.56940222,1977.4,1977.0,0.60590264]
[1771744297875,0.58507482,1977.5,1977.0,0.60590264]
[1771744298176,0.45338388,1977.4,1977.0,0.60590264]
[1771744298369,0.58507482,1977.5,1977.0,0.60590264]
[1771744298578,0.45338426,1977.4,1977.0,0.60590264]
[1771744298779,0.58507482,1977.5,1977.0,0.60590264]
[1771744298982,0.45338432,1977.4,1977.0,0.60590264]
[1771744299181,0.58507482,1977.5,1977.0,0.60590264]
[1771744299480,0.45338465,1977.4,1977.0,0.60590264]
[1771744299682,0.58507482,1977.5,1977.0,0.60590264]
[1771744299881,0.4533847,1977.4,1977.0,0.60590264]
[1771744300082,0.58507482,1977.5,1977.0,0.60590264]
[1771744300379,0.45338569,1977.4,1977.0,0.60590264]
[1771744300580,0.58507482,1977.5,1977.0,0.60590264]
[1771744300780,0.45338559,1977.4,1977.0,0.60590264]
[1771744300980,0.58507482,1977.5,1977.0,0.60590264]
[1771744301176,0.45338565,1977.4,1977.0,0.60590264]
[1771744301382,0.58507482,1977.5,1977.0,0.60590264]
[1771744301578,0.45338676,1977.4,1977.0,0.60590264]
[1771744301775,0.58904917,1977.7,1977.0,0.60590264]
[1771744301985,0.45338585,1977.6,1977.0,0.60590264]
[1771744302184,0.45338585,1977.5,1977.0,0.60590264]
[1771744302385,0.45338585,1977.4,1977.0,0.60590264]
[1771744302686,0.58507482,1977.5,1977.0,0.60590264]
[1771744302986,0.45338727,1977.4,1977.0,0.60590264]
[1771744303185,0.58507482,1977.5,1977.0,0.60590264]
[1771744303486,0.4533889,1977.4,1977.0,0.60590264]
[1771744303684,0.58507482,1977.5,1977.0,0.60590264]
[1771744303884,0.4533889,1977.4,1977.0,0.60590264]
[1771744304177,0.00397435,1977.7,1977.0,0.60590264]
[1771744304383,0.58507482,1977.5,1977.0,0.60590264]
[1771744304583,0.45339083,1977.4,1977.0,0.60590264]
[1771744304883,0.58507482,1977.5,1977.0,0.60590264]
[1771744305083,0.45338265,1977.4,1977.0,0.60590264]
[1771744305285,0.58507482,1977.5,1977.0,0.60590264]
[1771744305486,0.45338417,1977.4,1977.0,0.60590264]
[1771744305685,0.58507482,1977.5,1977.0,0.60590264]
[1771744305886,0.45338427,1977.4,1977.0,0.60590264]
[1771744306087,0.58507482,1977.5,1977.0,0.60590264]
[1771744306282,0.45338483,1977.4,1977.0,0.60590264]
[1771744306586,0.58507482,1977.5,1977.0,0.60590264]
[1771744306784,0.45338488,1977.4,1977.0,0.60590264]
[1771744306984,0.58507482,1977.5,1977.0,0.60590264]
[1771744307280,0.45338493,1977.4,1977.0,0.60590264]
[1771744307486,0.58507482,1977.2,1976.8,6.95890534]
[1771744307685,0.58507482,1977.2,1976.8,0.59912009]
[1771744313991,0.58507482,1977.2,1976.7,0.60461284]
[1771744333406,0.5703461,1977.5,1976.7,0.60461284]
[1771744333609,1.02321444,1977.4,1976.7,0.60461284]
[1771744333810,0.45286834,1977.3,1976.7,0.60461284]
[1771744334010,0.45286834,1977.2,1976.7,0.60461284]
[1771744334211,0.5703461,1977.4,1976.7,0.60461284]
[1771744334411,0.45291306,1977.3,1976.7,0.60461284]
[1771744334709,0.45291306,1977.2,1976.7,0.60461284]
[1771744335009,0.5703461,1977.4,1976.7,0.60461284]
[1771744335209,0.4529721,1977.3,1976.7,0.60461284]
[1771744335408,0.4529721,1977.2,1976.7,0.60461284]
[1771744335610,0.5703461,1977.4,1976.7,0.60461284]
[1771744335804,0.45298428,1977.3,1976.7,0.60461284]
[1771744336006,0.45298428,1977.2,1976.7,0.60461284]
[1771744336209,0.5703461,1977.4,1976.7,0.60461284]
[1771744336409,0.45307035,1977.3,1976.7,0.60461284]
[1771744336610,0.5703461,1977.1,1976.7,0.60461284]
[1771744344011,0.5703461,1977.1,1976.7,0.00549275]
[1771744344315,0.5703461,1977.1,1976.7,0.60403553]
[1771744363424,4.82395559,1977.5,1976.7,0.60403553]
[1771744363727,7.52577012,1977.6,1977.1,0.53912674]
[1771744363728,0.4530839,1977.4,1977.1,0.53912674]
[1771744363928,0.4530839,1977.3,1977.1,0.53912674]
[1771744364128,0.57882812,1977.5,1977.1,0.53912674]
[1771744364322,0.45302356,1977.4,1977.1,0.53912674]
[1771744364522,0.45302356,1977.3,1977.1,0.53912674]
[1771744364724,0.57882812,1977.5,1977.1,0.53912674]
[1771744364926,0.45296867,1977.4,1977.1,0.53912674]
[1771744365222,0.45296867,1977.3,1977.1,0.53912674]
[1771744365418,0.57882812,1977.5,1977.1,0.53912674]
[1771744365619,0.45291142,1977.4,1977.1,0.53912674]
[1771744365823,0.45291142,1977.3,1977.1,0.53912674]
[1771744366024,0.57882812,1977.5,1977.1,0.53912674]
[1771744366229,1.03172794,1977.4,1977.1,0.53912674]
[1771744366429,0.45289982,1977.3,1977.1,0.53912674]
[1771744366624,0.57882812,1977.4,1977.1,0.53912674]
[1771744366826,0.45283433,1977.3,1977.1,0.53912674]
[1771744367031,0.57882812,1977.4,1977.1,0.53912674]
[1771744367232,0.45283442,1977.3,1977.1,0.53912674]
[1771744367431,0.57882812,1977.4,1977.1,0.53912674]
[1771744367633,0.45278365,1977.3,1977.1,0.53912674]
[1771744367832,0.58280247,1977.7,1977.1,0.53912674]
[1771744368033,1.03161123,1977.6,1977.1,0.53912674]
[1771744368228,0.45278311,1977.5,1977.1,0.53912674]
[1771744373034,1.03161123,1977.5,1977.1,0.53912674]
[1771744373237,0.57882812,1977.5,1977.1,0.53912674]
[1771744389646,0.58069551,1977.4,1976.8,0.55945208]
[1771744416572,0.58069551,1977.4,1976.9,0.5471241]
[1771744423275,0.57686329,1977.6,1976.9,0.5471241]
[1771744428377,0.58083764,1977.7,1976.9,0.5471241]
[1771744448199,0.00397435,1977.7,1976.7,0.00549275]
[1771744450192,0.58358155,1977.6,1976.8,0.58359976]
[1771744458103,0.57811009,1977.4,1977.0,0.547456]
[1771744479024,0.57811009,1977.4,1976.9,6.3725598]
[1771744479228,0.57811009,1977.4,1976.9,0.59992657]
[1771744496341,5.39887373,1977.7,1977.0,0.59992657]
[1771744496342,0.00397435,1977.7,1977.0,0.59992657]
[1771744496542,0.00397435,1977.7,1977.4,0.59992657]
[1771744496543,0.57739186,1977.7,1977.4,0.59992657]
[1771744501351,0.57739186,1977.7,1977.2,0.59992657]
[1771744516658,0.57739186,1977.7,1977.0,6.92177827]
[1771744516858,0.55732803,1977.5,1977.0,0.54921847]
[1771744517057,0.55732803,1977.5,1977.1,0.54921847]
[1771744519658,0.55732803,1977.6,1977.1,0.54921847]
[1771744519859,0.55732803,1977.6,1977.1,1.69569865]
[1771744520060,0.55732803,1977.6,1977.2,0.54921847]
[1771744520558,0.55732803,1977.6,1977.1,1.69569865]
[1771744520758,0.55732803,1977.6,1977.2,0.54921847]
[1771744527663,0.55732803,1977.6,1977.1,6.3725598]
[1771744527866,0.55732803,1977.6,1977.1,6.92177827]
[1771744529369,0.55732803,1977.6,1977.2,0.54921847]
[1771744531371,0.55732803,1977.6,1977.1,6.3725598]
[1771744531570,0.55732803,1977.6,1977.0,6.92177827]
[1771744533573,0.55732803,1977.6,1977.1,0.54921847]
[1771744539475,0.55732803,1977.6,1977.1,6.92177827]
[1771744539881,0.55732803,1977.6,1977.2,0.59634265]
[1771744540081,0.55732803,1977.6,1977.1,0.59634265]
[1771744542881,0.55732803,1977.6,1977.1,6.96890245]
[1771744543882,0.55732803,1977.6,1977.2,0.59634265]
[1771744565801,0.55732803,1977.6,1977.1,6.3725598]
[1771744565999,0.55768658,1977.4,1977.0,6.96890245]
[1771744566202,0.55768658,1977.4,1977.1,0.59634265]
[1771744569212,0.58042983,1977.7,1977.1,0.59634265]
[1771744569402,0.4529363,1977.6,1977.1,0.59634265]
[1771744569606,0.4529363,1977.5,1977.1,0.59634265]
[1771744569901,0.57645548,1977.6,1977.1,0.59634265]
[1771744570206,1.02939118,1977.5,1977.1,0.59634265]
[1771744570406,0.57645548,1977.5,1977.1,0.59634265]
[1771744583627,0.55189409,1977.6,1977.1,0.59634265]
[1771744583820,1.00476027,1977.5,1977.1,0.59634265]
[1771744584120,0.55189409,1977.5,1977.1,0.59634265]
[1771744592425,0.55189409,1977.5,1976.9,0.55697888]
[1771744592633,0.55189409,1977.3,1976.9,0.55697888]
[1771744593632,0.55189409,1977.6,1976.9,0.55697888]
[1771744593834,0.55189409,1977.4,1976.9,0.55697888]
[1771744622358,1.02537162,1977.3,1976.9,0.55697888]
[1771744622550,0.57219066,1977.3,1976.9,0.55697888]
[1771744622856,0.57219066,1977.3,1976.8,0.55229009]
[1771744630166,0.60218657,1977.1,1976.8,0.55229009]
[1771744632972,0.60218657,1977.1,1976.7,0.58551756]
[1771744641683,0.60218657,1977.1,1976.7,0.00549275]
[1771744641983,0.60218657,1977.1,1976.7,0.58551756]
[1771744665997,0.45296825,1977.0,1976.5,0.54270714]
[1771744666198,0.60218657,1977.1,1976.5,0.54270714]
[1771744666391,0.5610843,1976.9,1976.5,0.54270714]
[1771744666997,0.5610843,1976.9,1976.5,0.54746098]
[1771744672905,0.5610843,1976.9,1976.5,0.00475384]
[1771744681911,0.5610843,1976.9,1976.3,0.54270714]
[1771744682907,0.5610843,1976.9,1976.3,0.00502435]
[1771744683516,0.5610843,1976.7,1976.0,0.54270714]
[1771744684614,0.5610843,1976.7,1976.0,0.54736274]
[1771744685516,0.5610843,1976.5,1976.0,0.54736274]
[1771744696621,0.5610843,1976.5,1976.0,0.0046556]
[1771744696916,0.5610843,1976.5,1976.0,0.59939491]
[1771744697420,0.5610843,1976.5,1976.0,0.0046556]
[1771744700920,0.5610843,1976.5,1975.7,0.59473931]
[1771744701119,0.55316459,1976.3,1975.7,0.59473931]
[1771744701315,0.55316459,1976.1,1975.3,0.59473931]
[1771744701715,13.02644584,1976.8,1974.6,12.02096312]
[1771744701716,0.55316459,1975.8,1975.0,0.59473931]
[1771744702023,0.55845257,1975.8,1975.0,0.6002992]
[1771744702922,0.55845257,1975.8,1975.0,0.00555989]
[1771744703323,0.55316459,1975.6,1975.0,0.00555989]
[1771744706123,1.6999147,1975.6,1975.0,0.00555989]
[1771744706426,0.55316459,1975.5,1974.4,0.59473931]
[1771744707424,0.55316459,1975.5,1974.4,0.60093509]
[1771744708326,0.55316459,1975.2,1974.4,0.60093509]
[1771744710624,0.55316459,1975.7,1974.5,0.59473931]
[1771744711424,1.14675011,1975.5,1974.5,0.59473931]
[1771744711624,0.55316459,1975.4,1974.5,0.59473931]
[1771744723842,1.14932066,1975.2,1974.5,0.59473931]
[1771744724147,0.57822316,1975.1,1974.5,0.59473931]
[1771744727550,0.57822316,1975.7,1975.0,0.55593015]
[1771744728152,0.00528798,1975.8,1975.2,0.55593015]
[1771744728456,0.58351114,1975.8,1975.2,0.55593015]
[1771744728752,0.58351114,1975.8,1975.1,1.14932066]
[1771744728753,0.00528798,1975.8,1975.4,0.55593015]
[1771744731556,0.57822316,1976.1,1975.6,0.55593015]
[1771744732554,0.58459979,1976.1,1975.6,0.55593015]
[1771744732756,0.00637663,1976.1,1975.7,0.55593015]
[1771744737060,0.58459979,1976.1,1975.0,0.55593015]
[1771744737261,0.57822316,1975.9,1975.2,0.55593015]
[1771744741464,1.14932066,1975.8,1975.2,0.55593015]
[1771744741663,1.72754382,1975.8,1975.2,0.55593015]
[1771744741863,1.14932066,1975.3,1974.7,0.55593015]
[1771744742159,0.57822316,1975.4,1974.7,0.55593015]
[1771744743265,1.72754382,1975.7,1974.9,0.55593015]
[1771744744566,0.57822316,1975.7,1974.9,0.55593015]
[1771744745462,0.57822316,1976.0,1975.1,0.55593015]
[1771744745863,0.57822316,1976.0,1975.3,0.55593015]
[1771744748971,0.00637663,1976.1,1975.5,0.60057621]
[1771744749173,0.58041431,1976.1,1975.5,0.60057621]
[1771744765087,0.45119785,1976.0,1975.5,0.60057621]
[1771744765287,0.58060502,1976.0,1975.5,0.60057621]
[1771744766286,0.58060502,1976.0,1975.4,0.58646838]
[1771744766589,0.58060502,1975.8,1975.1,0.58646838]
[1771744768188,0.00637663,1976.1,1975.1,0.58646838]
[1771744768189,0.58060502,1975.6,1975.1,0.58646838]
[1771744781296,0.58060502,1975.6,1974.9,0.59551246]
[1771744784203,1.73972822,1975.7,1974.9,0.59551246]
[1771744784404,0.59040756,1975.6,1974.9,0.59551246]
[1771744795114,0.59040756,1975.9,1974.9,0.59551246]
[1771744795315,0.59040756,1975.7,1975.0,0.59551246]
[1771744800619,0.59040756,1975.7,1975.1,0.59551246]
[1771744800814,4.20423681,1976.1,1975.1,0.59551246]
[1771744801014,0.59040756,1975.9,1975.2,0.59551246]
[1771744801217,0.45212489,1975.8,1975.2,0.59551246]
[1771744801422,1.04253245,1975.8,1975.2,0.59551246]
[1771744801623,0.59040756,1975.8,1975.2,0.59551246]
[1771744802417,0.59040756,1975.8,1975.0,0.59551246]
[1771744802625,0.59040756,1975.6,1975.0,0.59551246]
[1771744825139,0.59040756,1975.6,1975.0,8.56121221]
[1771744825340,0.59040756,1975.6,1975.1,0.55764058]
[1771744825535,0.57499697,1975.8,1975.1,0.55764058]
[1771744835648,0.57499697,1975.8,1975.2,0.55764058]
[1771744845851,0.57499697,1975.8,1975.4,0.59538966]
[1771744862378,0.59659161,1975.7,1974.9,10.62093301]
[1771744862578,1.14810322,1975.8,1974.6,13.87155592]
[1771744862579,0.59659161,1975.5,1975.0,7.36327016]
[1771744862774,0.59659161,1975.5,1974.7,7.61441868]
[1771744863081,0.59659161,1975.3,1974.7,7.61441868]
[1771744863878,0.59659161,1975.3,1974.8,0.59538966]
[1771744864178,0.59659161,1975.6,1974.9,0.59538966]
[1771744864381,0.59659161,1975.4,1975.0,0.59538966]
[1771744866482,0.59659161,1975.4,1974.9,7.61441868]
[1771744867283,0.59659161,1975.4,1974.9,0.59538966]
[1771744868383,0.59659161,1975.4,1975.0,7.01902902]
[1771744868983,0.59659161,1975.4,1975.0,6.67478788]
[1771744874089,0.59659161,1975.4,1975.0,7.2507702]
[1771744874886,0.59659161,1975.4,1975.0,6.67478788]
[1771744875790,0.59659161,1975.4,1975.0,7.2507702]
[1771744875992,0.59659161,1975.4,1975.0,6.67478788]
[1771744876988,0.59659161,1975.4,1975.0,7.2507702]
[1771744877394,0.59659161,1975.4,1975.0,0.57598232]
[1771744878393,0.59659161,1975.4,1974.5,0.57598232]
[1771744878591,0.59659161,1975.4,1974.9,0.57598232]
[1771744883498,0.59659161,1975.4,1975.0,7.2507702]
[1771744883696,0.59659161,1975.4,1975.0,0.57598232]
[1771744884094,0.5576708,1975.5,1975.1,0.57598232]
[1771744892306,7.03968385,1975.4,1975.1,0.57598232]
[1771744892505,0.5576708,1975.4,1975.1,0.57598232]
[1771744894008,1.14810322,1975.6,1975.1,0.57598232]
[1771744894208,7.03958622,1975.5,1975.2,0.57598232]
[1771744894402,6.48191542,1975.4,1975.2,0.57598232]
[1771744894702,0.5576708,1975.5,1975.2,0.57598232]
[1771744894903,6.48185902,1975.4,1975.2,0.57598232]
[1771744895103,0.5576708,1975.5,1974.7,0.57598232]
[1771744895303,6.48185644,1975.4,1974.8,0.57598232]
[1771744895602,0.5576708,1975.5,1974.8,0.57598232]
[1771744895803,6.48181553,1975.4,1974.8,0.57598232]
[1771744896004,0.5576708,1975.5,1974.8,0.57598232]
[1771744896202,6.48181553,1975.4,1974.8,0.57598232]
[1771744896404,0.5576708,1975.8,1975.2,0.57598232]
[1771744896606,7.03999002,1975.7,1975.2,0.57598232]
[1771744896805,6.48231922,1975.6,1975.4,0.57598232]
[1771744897005,0.5576708,1975.7,1975.4,0.57598232]
[1771744897205,6.48234895,1975.6,1975.4,7.2507702]
[1771744897407,0.5576708,1975.7,1975.4,0.57598232]
[1771744897606,6.48023557,1975.6,1975.4,0.57598232]
[1771744897908,0.5576708,1975.7,1974.9,1.14810322]
[1771744898108,1.69675843,1975.2,1974.8,0.5463325]
[1771744898308,0.54865521,1975.1,1974.8,0.5463325]
[1771744898508,1.69675843,1975.2,1974.8,0.5463325]
[1771744898712,1.69675843,1975.2,1974.9,7.22112038]
[1771744899009,1.69675843,1975.2,1974.9,0.5463325]
[1771744901008,0.54865521,1975.2,1974.9,0.5463325]
[1771744902811,4.23432874,1975.6,1974.9,0.5463325]
[1771744903108,18.58137364,1977.3,1975.6,0.00088942]
[1771744903109,4.84576975,1976.9,1975.6,0.00088942]
[1771744903309,0.60205922,1976.8,1976.3,0.00088932]
[1771744903609,0.60205922,1976.8,1976.1,0.00088932]
[1771744903813,0.60205922,1976.4,1975.9,0.00088932]
[1771744904015,0.60654117,1976.4,1975.9,0.00443679]
[1771744904412,0.60654117,1976.4,1976.0,0.08385064]
[1771744908912,0.60654117,1976.4,1975.9,0.05218179]
[1771744909116,0.60654117,1976.4,1976.0,6.67478788]
[1771744910421,0.60654117,1976.4,1975.9,0.05218179]
[1771744910621,0.60654117,1976.4,1976.0,6.67478788]
[1771744912627,0.60654117,1976.4,1976.0,6.70470561]
[1771744915123,0.60654117,1976.4,1976.1,0.01479964]
[1771744915529,0.60654117,1976.4,1976.1,6.68958752]
[1771744918132,0.60654117,1976.4,1976.1,6.67478788]
[1771744921933,0.60654117,1976.4,1976.0,0.00175573]
[1771744922134,0.60654117,1976.4,1976.1,6.67478788]
[1771744927427,0.60654117,1976.4,1975.9,0.00354747]
[1771744927632,0.60654117,1976.4,1976.0,6.67478788]